fUST/lending_fUST_20250407
["ID","MTS","AMOUNT","RATE_DAILY","PERIOD"]
[357389529,1744037439847,-1154.48682857,0.00042754,2]
[357389530,1744037439856,-167.17245212,0.00042849,120]
[357389531,1744037439866,-1321.41629518,0.00042934,17]
[357389532,1744037439876,-1000.0,0.00042999,2]
[357389534,1744037439885,-151.0,0.00043,16]
[357389536,1744037439895,-12000.0,0.00043,120]
[357389537,1744037439904,-151.0,0.00043,17]
[357389538,1744037439919,-167.17245212,0.00043068,120]
[357389539,1744037439928,-359.9796305,0.00043178,30]
[357389540,1744037439938,-359.9796305,0.00043178,30]
[357389541,1744037439948,-359.9796305,0.00043178,30]
[357389542,1744037439957,-664.066284,0.00043178,30]
[357389543,1744037439967,-563.872994,0.00043256,30]
[357389545,1744037439977,-167.17245212,0.0004326,120]
[357389546,1744037439987,-543.0,0.00043399,2]
[357389547,1744037439997,-2255.0,0.00043399,2]
[357389549,1744037440007,-1000.0,0.00043472,2]
[357389551,1744037440017,-167.17245212,0.00043479,120]
[357389552,1744037440027,-151.0,0.000435,19]
[357389553,1744037440037,-1210.600805,0.000435,43]
[357389554,1744037440046,-151.0,0.000435,19]
[357389555,1744037440056,-1321.41629518,0.00043521,17]
[357389556,1744037440066,-2508.97949187,0.0004355,3]
[357389557,1744037440077,-1000.0,0.00043559,2]
[357389558,1744037440087,-847.73523127,0.00043559,2]
[357389559,1744037440097,-1268.4611641,0.0004356,2]
[357389560,1744037440107,-14839.59278167,0.0004356,2]
[357389561,1744037440116,-167.17245212,0.00043671,120]
[357389562,1744037440126,-1822.0,0.000437,120]
[357389563,1744037440136,-500.0,0.0004377,30]
[357389564,1744037440145,-500.0,0.00043773,10]
[357389565,1744037440155,-500.0,0.00043773,10]
[357389566,1744037440169,-501.16522683,0.00043773,10]
[357389567,1744037440179,-277.22786542,0.00043773,10]
[357389568,1744037440188,-514.54664532,0.00043773,10]
[357389569,1744037440197,-343.49979697,0.00043773,10]
[357389570,1744037440207,-500.0,0.00043773,10]
[357389571,1744037440216,-500.0,0.00043773,10]
[357389572,1744037440226,-500.0,0.00043773,10]
[357389574,1744037440236,-500.0,0.00043773,10]
[357389576,1744037440246,-318.0,0.0004378,14]
[357389577,1744037440255,-20071.835935,0.0004378,3]
[357389578,1744037440265,-160.0,0.00043789,30]
[357389579,1744037440275,-83741.69321148,0.0004379,2]
[357389584,1744037440642,-1445.42938353,0.0004379,2]
[357389586,1744037440653,-2218.15027819,0.0004379,2]
[357389598,1744037440765,-54449.19237924,0.0004379,2]
[357389666,1744037444763,-1128.1619022,0.00042433,30]
[357389668,1744037444773,-183.87,0.0004355,30]
[357389669,1744037444783,-228145.53474756,0.0004379,2]
[357389670,1744037444792,-500.0,0.00043835,120]
[357389671,1744037444802,-1000.0,0.00043835,120]
[357389672,1744037444812,-13079.1,0.00043835,120]
[357389673,1744037444822,-400.0,0.00043836,60]
[357389674,1744037444832,-984.0,0.00043863,120]
[357389675,1744037444842,-2508.97949187,0.00043868,3]
[357389676,1744037444852,-500.0,0.00043878,30]
[357389677,1744037444861,-500.0,0.00043885,30]
[357389678,1744037444871,-167.17245212,0.0004389,120]
[357389679,1744037444881,-500.0,0.000439,16]
[357389680,1744037444890,-500.0,0.000439,16]
[357389681,1744037444900,-1852.84,0.000439,30]
[357389682,1744037444910,-2000.0,0.000439,120]
[357389683,1744037444924,-1154.48682857,0.000439,2]
[357389684,1744037444933,-231.28369723,0.00043905,2]
[357389685,1744037444943,-6185.4635136,0.0004395,61]
[357389686,1744037444952,-27988.97707258,0.0004395,2]
[357389687,1744037444962,-23051.42,0.0004395,120]
[357389688,1744037444972,-442.0,0.0004397,120]
[357389689,1744037444981,-500.0,0.00043973,10]
[357389690,1744037444990,-500.0,0.00043973,10]
[357389691,1744037444999,-500.0,0.00043973,10]
[357389692,1744037445013,-500.0,0.00043973,10]
[357389693,1744037445022,-548.25653253,0.00043973,10]
[357389694,1744037445032,-500.0,0.00043973,10]
[357389695,1744037445042,-500.0,0.00043973,10]
[357389696,1744037445051,-500.0,0.00043973,10]
[357389697,1744037445060,-500.0,0.00043973,10]
[357389698,1744037445069,-500.0,0.00043973,10]
[357389699,1744037445079,-500.98419843,0.00043973,10]
[357389700,1744037445088,-500.0,0.00043973,10]
[357389701,1744037445097,-502.24471079,0.00043973,10]
[357389702,1744037445106,-394.48844015,0.00043973,10]
[357389703,1744037445115,-500.0,0.00043973,10]
[357389704,1744037445124,-500.0,0.00043973,10]
[357389705,1744037445133,-500.73757329,0.00043973,10]
[357389706,1744037445143,-500.0,0.00043973,10]
[357389707,1744037445152,-500.0,0.00043973,10]
[357389708,1744037445161,-500.0,0.00043973,10]
[357389709,1744037445174,-561.96628552,0.00043973,10]
[357389710,1744037445184,-442.0,0.0004398,120]
[357389711,1744037445193,-2508.97949187,0.0004399,3]
[357389712,1744037445202,-442.0,0.0004399,120]
[357389713,1744037445212,-234.01777134,0.00043999,2]
[357389714,1744037445222,-160.0,0.00043999,30]
[357389715,1744037445232,-419237.43,0.00044,30]
[357389716,1744037445242,-5480.26,0.00044,30]
[357389717,1744037445252,-500.0,0.00044,44]
[357389718,1744037445262,-156.396446,0.00044,120]
[357389719,1744037445271,-156.396446,0.00044,120]
[357389720,1744037445281,-346.82071,0.00044,120]
[357389721,1744037445291,-346.82071,0.00044,120]
[357389722,1744037445301,-151.0,0.00044,120]
[357389723,1744037445310,-151.0,0.00044,120]
[357389724,1744037445320,-151.0,0.00044,120]
[357389725,1744037445329,-151.0,0.00044,120]
[357389726,1744037445338,-151.0,0.00044,120]
[357389727,1744037445347,-151.0,0.00044,120]
[357389728,1744037445357,-151.0,0.00044,120]
[357389729,1744037445366,-175.050007,0.00044,120]
[357389730,1744037445376,-175.050007,0.00044,120]
[357389731,1744037445395,-200.0,0.00044,120]
[357389732,1744037445409,-151.0,0.00044,120]
[357389733,1744037445424,-151.0,0.00044,120]
[357389734,1744037445433,-15361.36,0.00044,30]
[357389735,1744037445443,-151.0,0.00044,120]
[357389736,1744037445453,-230.812653,0.00044,120]
[357389737,1744037445462,-12531.21,0.00044,30]
[357389738,1744037445471,-151.0,0.00044,120]
[357389739,1744037445480,-151.0,0.00044,120]
[357389740,1744037445490,-151.0,0.00044,120]
[357389741,1744037445500,-520.15705,0.00044,120]
[357389742,1744037445509,-520.15705,0.00044,120]
[357389743,1744037445518,-4630.97036704,0.00044,120]
[357389744,1744037445528,-151.0,0.00044,120]
[357389746,1744037445537,-151.0,0.00044,120]
[357389747,1744037445547,-151.0,0.00044,120]
[357389748,1744037445557,-1000.0,0.00044,43]
[357389749,1744037445567,-500.0,0.0004401,30]
[357389750,1744037445577,-2907.64864574,0.00044058,120]
[357389751,1744037445586,-167.17245212,0.00044082,120]
[357389752,1744037445596,-500.0,0.00044095,30]
[357389753,1744037445605,-1321.41629518,0.00044107,18]
[357389754,1744037445615,-160.0,0.00044108,30]
[357389755,1744037445624,-1174.88,0.00044109,120]
[357389756,1744037445634,-1174.88,0.00044109,120]
[357389757,1744037445643,-1174.88,0.00044109,120]
[357389758,1744037445653,-1174.88,0.00044109,120]
[357389759,1744037445662,-1174.88,0.00044109,120]
[357389760,1744037445676,-1174.88,0.00044109,120]
[357389761,1744037445686,-1174.88,0.00044109,120]
[357389762,1744037445695,-1174.88,0.00044109,120]
[357389763,1744037445705,-1174.88,0.00044109,120]
[357389764,1744037445714,-1174.88,0.00044109,120]
[357389765,1744037445723,-1174.88,0.00044109,120]
[357389766,1744037445733,-1174.88,0.00044109,120]
[357389768,1744037445742,-1174.88,0.00044109,120]
[357389769,1744037445752,-1174.88,0.00044109,120]
[357389770,1744037445762,-1174.88,0.00044109,120]
[357389771,1744037445771,-1174.88,0.00044109,120]
[357389772,1744037445781,-1174.88,0.00044109,120]
[357389774,1744037445791,-1174.88,0.00044109,120]
[357389775,1744037445801,-1174.88,0.00044109,120]
[357389776,1744037445811,-1174.88,0.00044109,120]
[357389777,1744037445820,-1174.88,0.00044109,120]
[357389778,1744037445830,-1174.88,0.00044109,120]
[357389779,1744037445840,-1174.88,0.00044109,120]
[357389780,1744037445849,-1175.02365556,0.00044109,120]
[357389781,1744037445859,-503.55711128,0.00044109,120]
[357389782,1744037445868,-500.0,0.00044109,120]
[357389783,1744037445877,-500.0,0.00044109,120]
[357389784,1744037445887,-506.00243298,0.00044109,120]
[357389785,1744037445896,-500.0,0.00044109,120]
[357389786,1744037445905,-500.0,0.00044109,120]
[357389787,1744037445917,-500.0,0.00044109,120]
[357389788,1744037445927,-500.0,0.00044109,120]
[357389789,1744037445936,-500.0,0.00044109,120]
[357389790,1744037445946,-500.0,0.00044109,120]
[357389792,1744037445955,-500.0,0.00044109,120]
[357389793,1744037445965,-500.0,0.00044109,120]
[357389795,1744037445975,-197.36868589,0.00044109,120]
[357389798,1744037445984,-500.0,0.00044109,2]
[357389799,1744037445993,-501.0130321,0.00044109,2]
[357389801,1744037446003,-660.32,0.00044109,120]
[357389803,1744037446012,-660.32,0.00044109,120]
[357389805,1744037446021,-660.32,0.00044109,120]
[357389806,1744037446032,-660.32,0.00044109,120]
[357389808,1744037446041,-660.32,0.00044109,120]
[357389809,1744037446050,-660.32,0.00044109,120]
[357389810,1744037446059,-660.32,0.00044109,120]
[357389811,1744037446069,-660.32,0.00044109,120]
[357389812,1744037446078,-660.32,0.00044109,120]
[357389813,1744037446087,-660.32,0.00044109,120]
[357389814,1744037446097,-660.32,0.00044109,120]
[357389816,1744037446107,-660.32,0.00044109,120]
[357389818,1744037446116,-660.32,0.00044109,120]
[357389820,1744037446125,-660.32,0.00044109,120]
[357389821,1744037446136,-660.32,0.00044109,120]
[357389823,1744037446145,-660.32,0.00044109,120]
[357389824,1744037446155,-660.32,0.00044109,120]
[357389825,1744037446169,-660.32,0.00044109,120]
[357389827,1744037446179,-660.32,0.00044109,120]
[357389829,1744037446189,-660.32,0.00044109,120]
[357389830,1744037446199,-660.32,0.00044109,120]
[357389832,1744037446209,-660.32,0.00044109,120]
[357389833,1744037446219,-660.32,0.00044109,120]
[357389834,1744037446229,-660.39230944,0.00044109,120]
[357389835,1744037446240,-500.0,0.00044109,120]
[357389836,1744037446251,-500.0,0.00044109,120]
[357389837,1744037446261,-500.0,0.00044109,120]
[357389838,1744037446271,-567.7703597,0.00044109,120]
[357389839,1744037446282,-500.0,0.00044109,120]
[357389840,1744037446292,-500.0,0.00044109,120]
[357389841,1744037446303,-500.0,0.00044109,120]
[357389842,1744037446314,-500.0,0.00044109,120]
[357389843,1744037446324,-500.0,0.00044109,120]
[357389844,1744037446335,-500.0,0.00044109,120]
[357389845,1744037446345,-500.0,0.00044109,120]
[357389846,1744037446356,-500.0,0.00044109,120]
[357389848,1744037446366,-500.0,0.00044109,120]
[357389850,1744037446376,-500.0,0.00044109,120]
[357389852,1744037446389,-500.0,0.00044109,120]
[357389854,1744037446399,-500.0,0.00044109,120]
[357389856,1744037446411,-500.0,0.00044109,120]
[357389857,1744037446552,-500.0,0.00044109,120]
[357389858,1744037446564,-500.0,0.00044109,120]
[357389859,1744037446575,-500.0,0.00044109,120]
[357389860,1744037446585,-599.35286073,0.00044109,120]
[357389861,1744037446595,-1290.92,0.00044109,120]
[357389862,1744037446605,-1290.92,0.00044109,120]
[357389863,1744037446615,-1290.92,0.00044109,120]
[357389865,1744037446624,-1290.92,0.00044109,120]
[357389866,1744037446635,-1290.92,0.00044109,120]
[357389867,1744037446644,-1290.92,0.00044109,120]
[357389868,1744037446655,-1290.92,0.00044109,120]
[357389869,1744037446668,-1290.92,0.00044109,120]
[357389870,1744037446679,-1290.92,0.00044109,120]
[357389871,1744037446689,-1290.92,0.00044109,120]
[357389872,1744037446700,-1290.92,0.00044109,120]
[357389873,1744037446711,-1290.92,0.00044109,120]
[357389874,1744037446722,-1290.92,0.00044109,120]
[357389875,1744037446733,-1290.92,0.00044109,120]
[357389876,1744037446745,-1290.92,0.00044109,120]
[357389877,1744037446756,-1290.92,0.00044109,120]
[357389878,1744037446767,-1290.92,0.00044109,120]
[357389879,1744037446777,-1290.92,0.00044109,120]
[357389880,1744037446787,-1290.92,0.00044109,120]
[357389881,1744037446797,-1290.92,0.00044109,120]
[357389882,1744037446808,-1290.92,0.00044109,120]
[357389883,1744037446818,-1290.92,0.00044109,120]
[357389884,1744037446828,-1290.92,0.00044109,120]
[357389885,1744037446838,-1291.00601994,0.00044109,120]
[357389886,1744037446848,-2176.16,0.00044109,120]
[357389887,1744037446860,-2176.16,0.00044109,120]
[357389888,1744037446869,-2176.16,0.00044109,120]
[357389889,1744037446879,-2176.16,0.00044109,120]
[357389890,1744037446890,-2176.16,0.00044109,120]
[357389891,1744037446899,-2176.16,0.00044109,120]
[357389892,1744037446909,-2176.16,0.00044109,120]
[357389893,1744037446923,-2176.16,0.00044109,120]
[357389894,1744037446932,-2176.16,0.00044109,120]
[357389895,1744037446941,-2176.16,0.00044109,120]
[357389896,1744037446951,-2176.16,0.00044109,120]
[357389897,1744037446963,-2176.16,0.00044109,120]
[357389898,1744037446972,-2176.16,0.00044109,120]
[357389899,1744037446982,-2176.16,0.00044109,120]
[357389900,1744037446991,-2176.16,0.00044109,120]
[357389901,1744037447000,-2176.16,0.00044109,120]
[357389902,1744037447010,-2176.16,0.00044109,120]
[357389903,1744037447019,-2176.16,0.00044109,120]
[357389904,1744037447029,-2176.16,0.00044109,120]
[357389905,1744037447038,-2176.16,0.00044109,120]
[357389906,1744037447047,-2176.16,0.00044109,120]
[357389907,1744037447056,-2176.16,0.00044109,120]
[357389908,1744037447066,-2176.16,0.00044109,120]
[357389909,1744037447075,-2176.39039398,0.00044109,120]
[357389910,1744037447085,-500.0,0.00044109,120]
[357389911,1744037447094,-500.0,0.00044109,120]
[357389912,1744037447104,-500.0,0.00044109,120]
[357389913,1744037447114,-500.0,0.00044109,120]
[357389914,1744037447123,-500.0,0.00044109,120]
[357389915,1744037447133,-500.0,0.00044109,120]
[357389916,1744037447143,-500.0,0.00044109,120]
[357389917,1744037447152,-523.72967033,0.00044109,120]
[357389918,1744037447162,-1507.82,0.00044109,120]
[357389919,1744037447176,-1507.82,0.00044109,120]
[357389920,1744037447186,-1507.82,0.00044109,120]
[357389921,1744037447196,-1507.82,0.00044109,120]
[357389922,1744037447206,-1507.82,0.00044109,120]
[357389923,1744037447217,-1507.82,0.00044109,120]
[357389924,1744037447226,-1507.82,0.00044109,120]
[357389925,1744037447236,-1507.82,0.00044109,120]
[357389926,1744037447246,-1507.82,0.00044109,120]
[357389927,1744037447256,-1507.82,0.00044109,120]
[357389928,1744037447266,-1507.82,0.00044109,120]
[357389929,1744037447275,-1507.82,0.00044109,120]
[357389930,1744037447285,-1346.50671369,0.00044109,120]
[357389931,1744037447351,-161.31328631,0.00044109,120]
[357389932,1744037447361,-363.66495641,0.00044109,120]
[357389934,1744037517256,-182.80942083,0.00036186,15]
[357389935,1744037556561,-164.9835011,0.00039693,15]
[357389936,1744037557175,-164.9835011,0.00039693,15]
[357389937,1744038133294,-196.2234246,0.000359,12]
[357389938,1744038138947,-196.2234246,0.00037762,14]
[357389939,1744038142485,-196.2234246,0.00025204,2]
[357389940,1744038145705,-196.2234246,0.00025204,2]
[357389941,1744038149999,-196.2234246,0.000359,12]
[357389947,1744038500377,5000.0,0.00025,80]
[357389964,1744038609128,2500.0,0.0003,10]
[357390008,1744038632536,-1109.5531508,0.00025204,2]
[357390010,1744038632548,-250.0,0.00030942,2]
[357390013,1744038632559,-400.0,0.00031671,2]
[357390015,1744038632575,-26631.4188857,0.00031672,2]
[357390017,1744038632586,-195.704217,0.00033645,120]
[357390019,1744038632598,-300.0,0.00034076,2]
[357390021,1744038632609,-282.66659751,0.00034979,2]
[357390023,1744038632619,-515.51826297,0.00034999,7]
[357390025,1744038632630,-500.0,0.00034999,7]
[357390027,1744038632641,-500.0,0.00034999,7]
[357390029,1744038632651,-500.0,0.00034999,7]
[357390031,1744038632662,-551.1259794,0.00034999,7]
[357390033,1744038632673,-620.81257917,0.00034999,7]
[357390035,1744038632684,-500.0,0.00034999,7]
[357390037,1744038632695,-500.0,0.00034999,7]
[357390039,1744038632705,-500.0,0.00034999,7]
[357390041,1744038632716,-614.04326883,0.00034999,7]
[357390043,1744038632726,-500.0,0.00034999,7]
[357390045,1744038632736,-500.0,0.00034999,7]
[357390047,1744038632747,-500.0,0.00034999,7]
[357390049,1744038632761,-500.0,0.00034999,7]
[357390052,1744038632772,-500.0,0.00034999,7]
[357390054,1744038632782,-500.0,0.00034999,7]
[357390056,1744038632793,-500.0,0.00034999,7]
[357390058,1744038632803,-500.0,0.00034999,7]
[357390060,1744038632814,-500.0,0.00034999,7]
[357390062,1744038632828,-500.0,0.00034999,7]
[357390064,1744038632838,-500.0,0.00034999,7]
[357390066,1744038632847,-500.0,0.00034999,7]
[357390068,1744038632860,-500.0,0.00034999,7]
[357390070,1744038632870,-500.0,0.00034999,7]
[357390072,1744038632880,-500.0,0.00034999,7]
[357390074,1744038632890,-500.0,0.00034999,7]
[357390076,1744038632900,-500.0,0.00034999,7]
[357390078,1744038632910,-600.0,0.00034999,7]
[357390080,1744038632920,-500.0,0.00034999,7]
[357390082,1744038632929,-200.0,0.00035,14]
[357390084,1744038632939,-81609.8,0.00035,2]
[357390086,1744038632949,-648.490503,0.00035177,2]
[357390088,1744038632959,-1530.3943358,0.0003536,2]
[357390090,1744038632969,-153.22,0.0003565,3]
[357390092,1744038632979,-459.71,0.0003565,3]
[357390094,1744038632989,-5098.9949603,0.0003565,3]
[357390097,1744038632999,-197.2333412,0.00035659,15]
[357390098,1744038633010,-180.38742525,0.00035659,15]
[357390101,1744038633020,-500.0,0.00035659,15]
[357390103,1744038633030,-299.02263788,0.00035659,15]
[357390105,1744038633040,-1520.77,0.0003566,7]
[357390107,1744038633050,-2457.77,0.0003566,7]
[357390109,1744038633060,-500.0,0.0003566,7]
[357390111,1744038633073,-1627.56,0.0003566,7]
[357390113,1744038633084,-1677.43,0.0003566,7]
[357390115,1744038633095,-865.63,0.0003566,7]
[357390117,1744038633105,-500.0,0.0003566,7]
[357390119,1744038633115,-3344.87,0.0003566,7]
[357390121,1744038633125,-3725.09,0.0003566,7]
[357390123,1744038633138,-50000.0,0.0003566,2]
[357390125,1744038633148,-500.0,0.0003566,7]
[357390127,1744038633158,-500.0,0.0003566,7]
[357390129,1744038633169,-500.0,0.0003566,7]
[357390131,1744038633179,-500.0,0.0003566,7]
[357390133,1744038633190,-500.0,0.0003566,7]
[357390135,1744038633200,-3545.08,0.0003566,7]
[357390137,1744038633210,-500.0,0.0003566,7]
[357390139,1744038633220,-589.57,0.0003566,7]
[357390141,1744038633230,-500.0,0.0003566,7]
[357390143,1744038633240,-4266.19,0.0003566,7]
[357390145,1744038633251,-1000.0,0.0003566,3]
[357390147,1744038633261,-3518.22,0.0003566,7]
[357390149,1744038633272,-500.0,0.0003566,7]
[357390151,1744038633282,-2261.08,0.0003566,7]
[357390153,1744038633292,-333.93618518,0.0003566,7]
[357390155,1744038633303,-500.0,0.0003566,7]
[357390157,1744038633313,-720.03,0.0003566,7]
[357390185,1744038633593,-1341.13,0.0003566,7]
[357390187,1744038633604,-2302.74,0.0003566,7]
[357390189,1744038633614,-21870.6466691,0.00035661,2]
[357390191,1744038633625,-151.0,0.00035868,2]
[357390193,1744038633635,-2549.49748015,0.00035878,3]
[357390195,1744038633645,-633.50095851,0.00035889,7]
[357390197,1744038633655,-558.08,0.00035889,7]
[357390199,1744038633666,-500.0,0.00035889,7]
[357390201,1744038633676,-500.0,0.00035889,7]
[357390203,1744038633687,-500.0,0.00035889,7]
[357390205,1744038633697,-135.39853321,0.00035889,7]
[357390207,1744038633711,-539.77146679,0.00035889,7]
[357390209,1744038633720,-3.77507824,0.00035889,7]
[357390211,1744038633733,-414.75,0.00035889,7]
[357390214,1744038633745,-81.47492176,0.00035889,7]
[357390216,1744038633756,-500.0,0.00035889,7]
[357390218,1744038633766,-145.63304686,0.00035889,7]
[357390247,1744038634109,-969.86695314,0.00035889,7]
[357390249,1744038634120,-500.0,0.00035889,7]
[357390251,1744038634131,-1442.05,0.00035889,7]
[357390253,1744038634142,-801.84,0.00035889,7]
[357390255,1744038634154,-500.0,0.00035889,7]
[357390257,1744038634165,-500.0,0.00035889,7]
[357390258,1744038634175,-1959.76,0.00035889,7]
[357390259,1744038634186,-500.0,0.00035889,7]
[357390260,1744038634198,-500.0,0.00035889,7]
[357390262,1744038634209,-664.85,0.00035889,7]
[357390264,1744038634220,-500.0,0.00035889,7]
[357390265,1744038634230,-4187.48,0.00035889,2]
[357390267,1744038634241,-506.21457009,0.00035889,7]
[357390269,1744038634252,-500.0,0.00035889,7]
[357390271,1744038634263,-500.0,0.00035889,7]
[357390273,1744038634274,-533.57,0.00035889,7]
[357390274,1744038634286,-500.0,0.00035889,7]
[357390275,1744038634297,-500.0,0.00035889,7]
[357390276,1744038634307,-2281.6,0.00035889,7]
[357390277,1744038634322,-2424.29,0.00035889,7]
[357390278,1744038634334,-1000.0,0.00035889,2]
[357390279,1744038634345,-500.0,0.00035889,7]
[357390280,1744038634356,-3542.95,0.00035889,7]
[357390281,1744038634367,-500.0,0.00035889,7]
[357390282,1744038634378,-500.0,0.00035889,7]
[357390283,1744038634390,-500.0,0.00035889,7]
[357390284,1744038634400,-500.0,0.00035889,7]
[357390285,1744038634411,-1200.84,0.00035889,7]
[357390286,1744038634422,-357.715788,0.0003589,2]
[357390287,1744038634433,-5000.0,0.000359,35]
[357390288,1744038634444,-1201.3330713,0.000359,12]
[357390289,1744038634454,-410.06854906,0.00035924,3]
[357390307,1744038638617,-500.0,0.00032876,7]
[357390309,1744038638627,-712.68,0.00032876,7]
[357390311,1744038638637,-500.0,0.0003315,7]
[357390313,1744038638646,-712.68,0.0003315,7]
[357390315,1744038638656,-500.0,0.00033424,7]
[357390316,1744038638665,-712.68,0.00033424,7]
[357390318,1744038638675,-545.64443933,0.00033698,7]
[357390320,1744038638684,-712.68,0.00033698,7]
[357390322,1744038638693,-712.68,0.00033972,7]
[357390324,1744038638703,-712.68,0.00034246,7]
[357390326,1744038638713,-712.68,0.0003452,7]
[357390328,1744038638722,-712.68,0.00034794,7]
[357390330,1744038638731,-712.68,0.00035068,7]
[357390333,1744038638740,-712.68,0.00035342,7]
[357390335,1744038638752,-500.0,0.0003566,7]
[357390337,1744038638765,-856.0,0.0003566,7]
[357390339,1744038638775,-2139.42893109,0.00035924,3]
[357390341,1744038638784,-1520.77,0.00035934,7]
[357390343,1744038638795,-2457.77,0.00035934,7]
[357390345,1744038638804,-500.0,0.00035934,7]
[357390347,1744038638814,-1627.56,0.00035934,7]
[357390349,1744038638826,-1677.43,0.00035934,7]
[357390351,1744038638835,-865.63,0.00035934,7]
[357390352,1744038638845,-500.0,0.00035934,7]
[357390354,1744038638854,-3344.87,0.00035934,7]
[357390374,1744038639045,-3725.09,0.00035934,7]
[357390376,1744038639055,-500.0,0.00035934,7]
[357390378,1744038639065,-500.0,0.00035934,7]
[357390380,1744038639079,-500.0,0.00035934,7]
[357390382,1744038639089,-500.0,0.00035934,7]
[357390384,1744038639099,-500.0,0.00035934,7]
[357390386,1744038639109,-3545.08,0.00035934,7]
[357390388,1744038639119,-589.57,0.00035934,7]
[357390390,1744038639129,-500.0,0.00035934,7]
[357390392,1744038639139,-4266.19,0.00035934,7]
[357390394,1744038639149,-500.0,0.00035934,3]
[357390396,1744038639158,-3518.22,0.00035934,7]
[357390398,1744038639167,-500.0,0.00035934,7]
[357390400,1744038639177,-2261.08,0.00035934,7]
[357390402,1744038639188,-500.0,0.00035934,7]
[357390404,1744038639198,-720.03,0.00035934,7]
[357390406,1744038639207,-1341.13,0.00035934,7]
[357390408,1744038639217,-2302.74,0.00035934,7]
[357390410,1744038639226,-500.0,0.00035934,7]
[357390412,1744038639236,-856.0,0.00035934,7]
[357390414,1744038639247,-558.08,0.00036163,7]
[357390416,1744038639258,-364.8287798,0.00036163,7]
[357390418,1744038639267,-500.0,0.00036163,7]
[357390420,1744038639277,-500.0,0.00036163,7]
[357390422,1744038639287,-675.17,0.00036163,7]
[357390424,1744038639296,-520.44031798,0.00036163,7]
[357390426,1744038639305,-500.0,0.00036163,7]
[357390428,1744038639315,-1115.5,0.00036163,7]
[357390429,1744038639327,-500.0,0.00036163,7]
[357390431,1744038639337,-1442.05,0.00036163,7]
[357390433,1744038639346,-801.84,0.00036163,7]
[357390435,1744038639357,-500.0,0.00036163,7]
[357390437,1744038639366,-500.0,0.00036163,7]
[357390439,1744038639376,-1959.76,0.00036163,7]
[357390440,1744038639386,-500.0,0.00036163,7]
[357390442,1744038639396,-500.0,0.00036163,7]
[357390444,1744038639406,-664.85,0.00036163,7]
[357390445,1744038639416,-500.0,0.00036163,7]
[357390446,1744038639426,-4187.48,0.00036163,2]
[357390447,1744038639435,-500.0,0.00036163,7]
[357390448,1744038639445,-500.0,0.00036163,7]
[357390449,1744038639454,-533.57,0.00036163,7]
[357390450,1744038639464,-500.0,0.00036163,7]
[357390451,1744038639474,-500.0,0.00036163,7]
[357390452,1744038639486,-2281.6,0.00036163,7]
[357390453,1744038639496,-2424.29,0.00036163,7]
[357390455,1744038639506,-500.0,0.00036163,7]
[357390456,1744038639517,-3542.95,0.00036163,7]
[357390457,1744038639526,-500.0,0.00036163,7]
[357390458,1744038639536,-500.0,0.00036163,7]
[357390459,1744038639546,-500.0,0.00036163,7]
[357390460,1744038639557,-500.0,0.00036163,7]
[357390461,1744038639567,-1200.84,0.00036163,7]